[Event "*** SCC Grand Prix: Titled Tuesday Blitz"]
[Site "Chess.com"]
[Date "2020.06.02"]
[Round "6"]
[White "AverageRecord"]
[Black "AndrewMaco"]
[Result "1/2-1/2"]
[WhiteElo "3008"]
[BlackElo "2649"]
[TimeControl "180+1"]
[EndTime "11:09:56 PDT"]
[Termination "Game drawn by repetition"]

1. d4 {[%clk 0:03:00.9]} 1... Nf6 {[%clk 0:02:58.4]} 2. Nf3 {[%clk 0:03:01.2]}
2... d5 {[%clk 0:02:57.1]} 3. Bf4 {[%clk 0:03:00.8]} 3... e6 {[%clk 0:02:57.6]}
4. e3 {[%clk 0:03:01.1]} 4... Bd6 {[%clk 0:02:58.2]} 5. Bxd6 {[%clk 0:03:01.2]}
5... Qxd6 {[%clk 0:02:58.7]} 6. c4 {[%clk 0:03:02.1]} 6... O-O {[%clk
0:02:53.9]} 7. Nc3 {[%clk 0:03:02.4]} 7... dxc4 {[%clk 0:02:50.3]} 8. Bxc4
{[%clk 0:03:01.8]} 8... c5 {[%clk 0:02:51]} 9. O-O {[%clk 0:02:56.7]} 9... Nc6
{[%clk 0:02:48.8]} 10. Nb5 {[%clk 0:02:56.8]} 10... Qe7 {[%clk 0:02:48.5]} 11.
dxc5 {[%clk 0:02:56.2]} 11... Qxc5 {[%clk 0:02:49.4]} 12. Rc1 {[%clk 0:02:56.7]}
12... Rd8 {[%clk 0:02:46.2]} 13. Qe2 {[%clk 0:02:49.7]} 13... Qe7 {[%clk
0:02:45.6]} 14. Rfd1 {[%clk 0:02:49.3]} 14... Bd7 {[%clk 0:02:38.1]} 15. a3
{[%clk 0:02:33]} 15... Be8 {[%clk 0:02:36.7]} 16. Ba2 {[%clk 0:02:31.9]} 16...
a6 {[%clk 0:02:33.9]} 17. Nc3 {[%clk 0:02:30.6]} 17... Rxd1+ {[%clk 0:02:32.4]}
18. Rxd1 {[%clk 0:02:30.5]} 18... Rd8 {[%clk 0:02:33]} 19. Rc1 {[%clk
0:02:29.3]} 19... Qc5 {[%clk 0:02:09.4]} 20. h3 {[%clk 0:02:27.1]} 20... Ne5
{[%clk 0:02:04]} 21. Nd4 {[%clk 0:02:15.6]} 21... Nc6 {[%clk 0:02:01.6]} 22. Nf3
{[%clk 0:02:03.8]} 22... Ne5 {[%clk 0:02:01.3]} 23. Nxe5 {[%clk 0:02:04.2]}
23... Qxe5 {[%clk 0:02:02.2]} 24. Rd1 {[%clk 0:02:04.8]} 24... Qc7 {[%clk
0:01:53.3]} 25. Rxd8 {[%clk 0:01:59.7]} 25... Qxd8 {[%clk 0:01:54.2]} 26. Qd1
{[%clk 0:02:00.3]} 26... Qxd1+ {[%clk 0:01:53]} 27. Nxd1 {[%clk 0:02:01.2]}
27... Bc6 {[%clk 0:01:52.6]} 28. f3 {[%clk 0:01:58.2]} 28... g5 {[%clk
0:01:52.3]} 29. Kf2 {[%clk 0:01:57.7]} 29... h6 {[%clk 0:01:50.3]} 30. Nc3
{[%clk 0:01:57.8]} 30... Kf8 {[%clk 0:01:50.1]} 31. b4 {[%clk 0:01:57.4]} 31...
Ke7 {[%clk 0:01:49.8]} 32. e4 {[%clk 0:01:57.7]} 32... Kd6 {[%clk 0:01:32.8]}
33. g3 {[%clk 0:01:57.1]} 33... Nh5 {[%clk 0:01:17]} 34. Ne2 {[%clk 0:01:54.6]}
34... Bb5 {[%clk 0:01:16.7]} 35. Nd4 {[%clk 0:01:49.4]} 35... Ke5 {[%clk
0:01:10.6]} 36. Nxb5 {[%clk 0:01:26.8]} 36... axb5 {[%clk 0:01:11.5]} 37. Bb3
{[%clk 0:01:27.5]} 37... Kd4 {[%clk 0:01:11.8]} 38. Bd1 {[%clk 0:01:28]} 38...
Kc3 {[%clk 0:01:03.9]} 39. Be2 {[%clk 0:01:28.1]} 39... f5 {[%clk 0:00:49.3]}
40. e5 {[%clk 0:01:16.6]} 40... f4 {[%clk 0:00:21]} 41. g4 {[%clk 0:01:15.5]}
41... Ng7 {[%clk 0:00:21.5]} 42. Bxb5 {[%clk 0:01:15.8]} 42... Kb3 {[%clk
0:00:22]} 43. a4 {[%clk 0:00:56.7]} 43... Kxb4 {[%clk 0:00:22.2]} 44. Ke2 {[%clk
0:00:57.2]} 44... Kc3 {[%clk 0:00:22.5]} 45. Bd7 {[%clk 0:00:50.1]} 45... b6
{[%clk 0:00:20.3]} 46. Kd1 {[%clk 0:00:40.6]} 46... Kd3 {[%clk 0:00:17.2]} 47.
Bc6 {[%clk 0:00:36.5]} 47... Kd4 {[%clk 0:00:16.4]} 48. Kc2 {[%clk 0:00:36.6]}
48... Kxe5 {[%clk 0:00:16.9]} 49. Kc3 {[%clk 0:00:36.4]} 49... Kd6 {[%clk
0:00:17.5]} 50. Bb5 {[%clk 0:00:36]} 50... e5 {[%clk 0:00:15.8]} 51. Kd3 {[%clk
0:00:36.4]} 51... Ne6 {[%clk 0:00:14.9]} 52. Ke4 {[%clk 0:00:36.8]} 52... Nd4
{[%clk 0:00:14.2]} 53. Bc4 {[%clk 0:00:33]} 53... Ne6 {[%clk 0:00:10.2]} 54. Kf5
{[%clk 0:00:31]} 54... Nd4+ {[%clk 0:00:09.4]} 55. Ke4 {[%clk 0:00:29.7]} 55...
Ne6 {[%clk 0:00:03.2]} 56. Bb5 {[%clk 0:00:26.1]} 56... Nd4 {[%clk 0:00:02.9]}
57. Be8 {[%clk 0:00:26]} 57... Ne6 {[%clk 0:00:03.2]} 58. Bb5 {[%clk 0:00:23.9]}
1/2-1/2

[Event "*** SCC Grand Prix: Titled Tuesday Blitz"]
[Site "Chess.com"]
[Date "2020.06.02"]
[Round "6"]
[White "Gajuchess"]
[Black "DenisQ"]
[Result "0-1"]
[WhiteElo "2764"]
[BlackElo "2594"]
[TimeControl "180+1"]
[EndTime "11:09:56 PDT"]
[Termination "DenisQ won by resignation"]

1. d4 {[%clk 0:03:00.9]} 1... d5 {[%clk 0:02:58.6]} 2. Nf3 {[%clk 0:03:00]} 2...
Nf6 {[%clk 0:02:57.9]} 3. c4 {[%clk 0:03:00.5]} 3... c6 {[%clk 0:02:57.7]} 4. e3
{[%clk 0:03:00.1]} 4... Bf5 {[%clk 0:02:56.9]} 5. Nc3 {[%clk 0:03:00.1]} 5... e6
{[%clk 0:02:56.8]} 6. Nh4 {[%clk 0:03:00.1]} 6... Be4 {[%clk 0:02:57]} 7. f3
{[%clk 0:03:00.4]} 7... Bg6 {[%clk 0:02:57]} 8. Qb3 {[%clk 0:03:00.6]} 8... Qc7
{[%clk 0:02:57]} 9. Bd2 {[%clk 0:02:59.2]} 9... Nbd7 {[%clk 0:02:56.6]} 10. cxd5
{[%clk 0:02:57.4]} 10... Nxd5 {[%clk 0:02:47.1]} 11. e4 {[%clk 0:02:52.4]} 11...
Nxc3 {[%clk 0:02:44.3]} 12. bxc3 {[%clk 0:02:50.3]} 12... Bd6 {[%clk 0:02:30.9]}
13. g3 {[%clk 0:02:47.8]} 13... e5 {[%clk 0:02:27.6]} 14. Rb1 {[%clk 0:02:28.1]}
14... b5 {[%clk 0:02:19.9]} 15. Be2 {[%clk 0:02:17.5]} 15... O-O {[%clk
0:02:16.3]} 16. O-O {[%clk 0:02:14.8]} 16... a6 {[%clk 0:02:11.2]} 17. Be3
{[%clk 0:02:11.3]} 17... c5 {[%clk 0:02:06.3]} 18. dxe5 {[%clk 0:02:08.2]} 18...
Bxe5 {[%clk 0:01:55.6]} 19. Rbd1 {[%clk 0:02:02.9]} 19... c4 {[%clk 0:01:33.3]}
20. Qa3 {[%clk 0:02:03]} 20... Bf6 {[%clk 0:01:27.7]} 21. Nxg6 {[%clk
0:02:01.8]} 21... hxg6 {[%clk 0:01:27.2]} 22. f4 {[%clk 0:01:55.9]} 22... Rfe8
{[%clk 0:01:23.1]} 23. e5 {[%clk 0:01:54.7]} 23... Be7 {[%clk 0:01:22.8]} 24.
Qc1 {[%clk 0:01:55.3]} 24... Bc5 {[%clk 0:01:22.9]} 25. Bf3 {[%clk 0:01:41.5]}
25... Rad8 {[%clk 0:01:21.8]} 26. Kg2 {[%clk 0:01:39.5]} 26... Bxe3 {[%clk
0:01:19.8]} 27. Qxe3 {[%clk 0:01:40.4]} 27... Nc5 {[%clk 0:01:19.9]} 28. Rd4
{[%clk 0:01:39.9]} 28... Ne6 {[%clk 0:01:11.1]} 29. Rd5 {[%clk 0:01:35.1]} 29...
Rxd5 {[%clk 0:00:55.7]} 30. Bxd5 {[%clk 0:01:36]} 30... Nc5 {[%clk 0:00:55.8]}
31. h4 {[%clk 0:00:56.8]} 31... Rd8 {[%clk 0:00:53.8]} 32. e6 {[%clk 0:00:37.5]}
32... Nxe6 {[%clk 0:00:41.9]} 33. Bxe6 {[%clk 0:00:38.4]} 33... Qc6+ {[%clk
0:00:42.1]} 34. Kh3 {[%clk 0:00:20.8]} 34... Qxe6+ {[%clk 0:00:41.3]} 35. Qxe6
{[%clk 0:00:20.8]} 35... fxe6 {[%clk 0:00:42.2]} 36. a4 {[%clk 0:00:20.6]} 36...
Kf7 {[%clk 0:00:27.5]} 37. axb5 {[%clk 0:00:20.7]} 37... axb5 {[%clk 0:00:28.3]}
38. Rb1 {[%clk 0:00:20.6]} 38... Rd5 {[%clk 0:00:28.2]} 39. Kg4 {[%clk
0:00:20.7]} 39... Ke7 {[%clk 0:00:27.6]} 40. Ra1 {[%clk 0:00:15.5]} 40... Kd6
{[%clk 0:00:16.8]} 41. Ra6+ {[%clk 0:00:15.5]} 41... Kc5 {[%clk 0:00:14.2]} 42.
Rxe6 {[%clk 0:00:16]} 42... Rd3 {[%clk 0:00:14.4]} 43. Re5+ {[%clk 0:00:16.4]}
43... Kc6 {[%clk 0:00:13.8]} 44. Rg5 {[%clk 0:00:15.9]} 44... Rxc3 {[%clk
0:00:13.4]} 45. Rxg6+ {[%clk 0:00:16.8]} 45... Kc5 {[%clk 0:00:13.9]} 46. Rxg7
{[%clk 0:00:17.7]} 46... Rc1 {[%clk 0:00:10.9]} 47. h5 {[%clk 0:00:18.1]} 47...
c3 {[%clk 0:00:10.5]} 48. h6 {[%clk 0:00:18.5]} 48... Rh1 {[%clk 0:00:10.4]} 49.
Rg5+ {[%clk 0:00:18.4]} 49... Kc4 {[%clk 0:00:08.9]} 50. Rg6 {[%clk 0:00:16.4]}
50... c2 {[%clk 0:00:08]} 51. Rc6+ {[%clk 0:00:16.4]} 51... Kd3 {[%clk
0:00:08.3]} 52. Kg5 {[%clk 0:00:16.9]} 52... b4 {[%clk 0:00:08]} 53. f5 {[%clk
0:00:13.7]} 53... b3 {[%clk 0:00:07.9]} 54. f6 {[%clk 0:00:14.3]} 54... b2
{[%clk 0:00:08.1]} 55. f7 {[%clk 0:00:14.3]} 55... c1=Q+ {[%clk 0:00:07.8]} 0-1

[Event "*** SCC Grand Prix: Titled Tuesday Blitz"]
[Site "Chess.com"]
[Date "2020.06.02"]
[Round "6"]
[White "Chopper1905"]
[Black "Khvicha_Supatashvili"]
[Result "0-1"]
[WhiteElo "2915"]
[BlackElo "2737"]
[TimeControl "180+1"]
[EndTime "11:09:57 PDT"]
[Termination "Khvicha_Supatashvili won by resignation"]

1. d4 {[%clk 0:03:00.9]} 1... Nf6 {[%clk 0:02:59.5]} 2. c4 {[%clk 0:03:01.1]}
2... e6 {[%clk 0:02:59.7]} 3. Nf3 {[%clk 0:03:00.7]} 3... d5 {[%clk 0:02:59.9]}
4. Nc3 {[%clk 0:03:00.8]} 4... Bb4 {[%clk 0:02:59.8]} 5. Qa4+ {[%clk 0:02:58.6]}
5... Nc6 {[%clk 0:02:59.3]} 6. cxd5 {[%clk 0:02:58.8]} 6... exd5 {[%clk
0:02:57.8]} 7. Bg5 {[%clk 0:02:59.3]} 7... h6 {[%clk 0:02:57.9]} 8. Bxf6 {[%clk
0:02:59.1]} 8... Qxf6 {[%clk 0:02:58.1]} 9. e3 {[%clk 0:02:59.6]} 9... O-O
{[%clk 0:02:55.7]} 10. Rd1 {[%clk 0:02:59.5]} 10... Be6 {[%clk 0:02:50.2]} 11.
Bd3 {[%clk 0:02:50.4]} 11... Bd6 {[%clk 0:02:39.3]} 12. Qb3 {[%clk 0:02:45]}
12... Nb4 {[%clk 0:02:25.3]} 13. Bb1 {[%clk 0:02:43.6]} 13... c5 {[%clk
0:02:17.9]} 14. dxc5 {[%clk 0:02:38.2]} 14... Bxc5 {[%clk 0:02:14.7]} 15. Nd4
{[%clk 0:02:38.6]} 15... Bxd4 {[%clk 0:01:51.8]} 16. Rxd4 {[%clk 0:02:33.6]}
16... Nc6 {[%clk 0:01:49.9]} 17. Rf4 {[%clk 0:02:09.8]} 17... Qg5 {[%clk
0:01:48.1]} 18. Qc2 {[%clk 0:02:01.6]} 18... g6 {[%clk 0:01:42.8]} 19. O-O
{[%clk 0:02:00.9]} 19... d4 {[%clk 0:01:27]} 20. Ne4 {[%clk 0:01:58.3]} 20...
Qe5 {[%clk 0:01:26.1]} 21. Qc5 {[%clk 0:01:07.9]} 21... dxe3 {[%clk 0:01:23.8]}
22. Qxe3 {[%clk 0:00:49.9]} 22... Rad8 {[%clk 0:01:14.1]} 23. Rh4 {[%clk
0:00:42.1]} 23... h5 {[%clk 0:01:12.4]} 24. b4 {[%clk 0:00:34.4]} 24... Kg7
{[%clk 0:01:08.7]} 25. a3 {[%clk 0:00:30.5]} 25... Nd4 {[%clk 0:01:01.2]} 26.
Nc5 {[%clk 0:00:18.6]} 26... Ne2+ {[%clk 0:00:45.2]} 27. Kh1 {[%clk 0:00:18.6]}
27... Qxe3 {[%clk 0:00:43.9]} 28. fxe3 {[%clk 0:00:19.5]} 28... b6 {[%clk
0:00:28.8]} 29. Ne4 {[%clk 0:00:09.2]} 29... Bf5 {[%clk 0:00:27]} 30. Ng5 {[%clk
0:00:08.1]} 30... Bxb1 {[%clk 0:00:22.8]} 31. Rxb1 {[%clk 0:00:09]} 31... Rfe8
{[%clk 0:00:20.5]} 32. e4 {[%clk 0:00:06.3]} 32... Nc3 {[%clk 0:00:18.9]} 33.
Re1 {[%clk 0:00:05.1]} 33... f6 {[%clk 0:00:17.7]} 34. Nf3 {[%clk 0:00:05.3]}
34... Rd3 {[%clk 0:00:16.5]} 35. h3 {[%clk 0:00:03.9]} 35... Nb5 {[%clk
0:00:15.6]} 36. a4 {[%clk 0:00:03.8]} 36... Nd4 {[%clk 0:00:15.5]} 37. e5 {[%clk
0:00:02.7]} 37... Nxf3 {[%clk 0:00:15.2]} 38. exf6+ {[%clk 0:00:03.1]} 38... Kf7
{[%clk 0:00:15.9]} 39. Rxe8 {[%clk 0:00:01.1]} 39... Nxh4 {[%clk 0:00:14.1]} 40.
Re7+ {[%clk 0:00:02]} 40... Kxf6 {[%clk 0:00:14.4]} 41. Rxa7 {[%clk 0:00:02.9]}
41... Rb3 {[%clk 0:00:13.8]} 42. Ra6 {[%clk 0:00:03.8]} 42... Rxb4 {[%clk
0:00:13.9]} 43. a5 {[%clk 0:00:04.7]} 43... Kf5 {[%clk 0:00:14.1]} 44. Rxb6
{[%clk 0:00:05.1]} 44... Ra4 {[%clk 0:00:13.3]} 45. Rb5+ {[%clk 0:00:05.5]}
45... Kf6 {[%clk 0:00:12.2]} 46. Kh2 {[%clk 0:00:06.4]} 46... Nf5 {[%clk
0:00:12.1]} 47. Rb6+ {[%clk 0:00:06.9]} 47... Kg5 {[%clk 0:00:11.8]} 48. Rb5
{[%clk 0:00:07.4]} 48... h4 {[%clk 0:00:12.1]} 49. Rc5 {[%clk 0:00:06.9]} 49...
Ra2 {[%clk 0:00:11.8]} 50. Rb5 {[%clk 0:00:07.5]} 50... Kf4 {[%clk 0:00:12]} 51.
Rb4+ {[%clk 0:00:07.8]} 51... Ke5 {[%clk 0:00:12]} 52. Rb5+ {[%clk 0:00:06.6]}
52... Ke4 {[%clk 0:00:12.3]} 53. Rb4+ {[%clk 0:00:06.7]} 53... Nd4 {[%clk
0:00:12.5]} 54. Rb6 {[%clk 0:00:05.5]} 54... Nf3+ {[%clk 0:00:12.3]} 0-1

[Event "*** SCC Grand Prix: Titled Tuesday Blitz"]
[Site "Chess.com"]
[Date "2020.06.02"]
[Round "6"]
[White "kuba2006"]
[Black "gahryman"]
[Result "0-1"]
[WhiteElo "2414"]
[BlackElo "2685"]
[TimeControl "180+1"]
[EndTime "11:09:58 PDT"]
[Termination "gahryman won on time"]

1. e4 {[%clk 0:03:00.9]} 1... c5 {[%clk 0:02:59.3]} 2. Nf3 {[%clk 0:03:00.7]}
2... e6 {[%clk 0:02:59.7]} 3. d4 {[%clk 0:03:00.8]} 3... cxd4 {[%clk 0:03:00.6]}
4. Nxd4 {[%clk 0:03:01.5]} 4... Nc6 {[%clk 0:03:01.2]} 5. Nc3 {[%clk 0:02:58.4]}
5... Qc7 {[%clk 0:03:01]} 6. Nb3 {[%clk 0:02:55.1]} 6... a6 {[%clk 0:02:57.9]}
7. Bd3 {[%clk 0:02:54.8]} 7... Nf6 {[%clk 0:02:55.2]} 8. O-O {[%clk 0:02:54.4]}
8... Be7 {[%clk 0:02:40.1]} 9. f4 {[%clk 0:02:53.4]} 9... d6 {[%clk 0:02:40.2]}
10. Kh1 {[%clk 0:02:52.4]} 10... O-O {[%clk 0:02:39.9]} 11. Bd2 {[%clk
0:02:51.9]} 11... b5 {[%clk 0:02:39.4]} 12. Qf3 {[%clk 0:02:49.6]} 12... Bb7
{[%clk 0:02:39.2]} 13. Rae1 {[%clk 0:02:48.6]} 13... Rac8 {[%clk 0:02:02.1]} 14.
Qh3 {[%clk 0:02:46.6]} 14... g6 {[%clk 0:01:25.5]} 15. f5 {[%clk 0:02:35.5]}
15... b4 {[%clk 0:00:59.5]} 16. Ne2 {[%clk 0:02:09.7]} 16... exf5 {[%clk
0:00:58.9]} 17. exf5 {[%clk 0:02:08]} 17... Ne5 {[%clk 0:00:59.8]} 18. Bh6
{[%clk 0:02:01]} 18... Rfe8 {[%clk 0:00:54.6]} 19. Bg5 {[%clk 0:01:56.6]} 19...
Qd7 {[%clk 0:00:42.5]} 20. Nf4 {[%clk 0:01:43.5]} 20... Nxd3 {[%clk 0:00:32.9]}
21. cxd3 {[%clk 0:01:18.6]} 21... Rc2 {[%clk 0:00:31.2]} 22. Re2 {[%clk
0:00:45.9]} 22... Rxe2 {[%clk 0:00:20.3]} 23. Nxe2 {[%clk 0:00:46.8]} 23... Nd5
{[%clk 0:00:20.9]} 24. Bxe7 {[%clk 0:00:39.3]} 24... Rxe7 {[%clk 0:00:17.8]} 25.
Nbd4 {[%clk 0:00:14.3]} 25... Ne3 {[%clk 0:00:17.7]} 26. Rg1 {[%clk 0:00:13.7]}
26... Nxf5 {[%clk 0:00:15.4]} 27. Nxf5 {[%clk 0:00:09.9]} 27... Qxf5 {[%clk
0:00:16]} 28. Qxf5 {[%clk 0:00:10]} 28... gxf5 {[%clk 0:00:16.9]} 29. Nd4 {[%clk
0:00:10.5]} 29... Re3 {[%clk 0:00:15.1]} 30. Rd1 {[%clk 0:00:07.4]} 30... f4
{[%clk 0:00:15]} 31. Kg1 {[%clk 0:00:06.9]} 31... a5 {[%clk 0:00:13.2]} 32. Kf2
{[%clk 0:00:07.1]} 32... Ba6 {[%clk 0:00:13.4]} 33. Nf5 {[%clk 0:00:03.3]} 33...
Rxd3 {[%clk 0:00:11.9]} 34. Rxd3 {[%clk 0:00:03.5]} 34... Bxd3 {[%clk
0:00:12.8]} 35. Nxd6 {[%clk 0:00:03.5]} 35... Kf8 {[%clk 0:00:11.3]} 36. Kf3
{[%clk 0:00:02.9]} 36... Ke7 {[%clk 0:00:09.9]} 37. Nc8+ {[%clk 0:00:03.5]}
37... Ke6 {[%clk 0:00:09.1]} 38. Kxf4 {[%clk 0:00:02.5]} 38... Kd5 {[%clk
0:00:08.9]} 39. Nb6+ {[%clk 0:00:01.8]} 39... Kd4 {[%clk 0:00:08.1]} 40. Kg5
{[%clk 0:00:01.1]} 40... Bb1 {[%clk 0:00:07.7]} 41. a3 {[%clk 0:00:01.1]} 41...
bxa3 {[%clk 0:00:07.9]} 42. bxa3 {[%clk 0:00:02]} 42... Kc3 {[%clk 0:00:07.9]}
43. Kf6 {[%clk 0:00:01.6]} 43... Bg6 {[%clk 0:00:05.7]} 44. a4 {[%clk
0:00:01.7]} 44... Kb4 {[%clk 0:00:05.4]} 45. h4 {[%clk 0:00:01.6]} 45... Bc2
{[%clk 0:00:05.2]} 46. g4 {[%clk 0:00:01.4]} 46... Bxa4 {[%clk 0:00:03.2]} 47.
Kxf7 {[%clk 0:00:01.9]} 47... Bb3+ {[%clk 0:00:02.9]} 48. Kg7 {[%clk 0:00:01.9]}
48... Kb5 {[%clk 0:00:03.4]} 0-1

[Event "*** SCC Grand Prix: Titled Tuesday Blitz"]
[Site "Chess.com"]
[Date "2020.06.02"]
[Round "6"]
[White "talman67"]
[Black "gm_rashid"]
[Result "1-0"]
[WhiteElo "2554"]
[BlackElo "2343"]
[TimeControl "180+1"]
[EndTime "11:10:01 PDT"]
[Termination "talman67 won by checkmate"]

1. e4 {[%clk 0:02:27.4]} 1... e5 {[%clk 0:02:58.9]} 2. Nf3 {[%clk 0:02:27.7]}
2... Nc6 {[%clk 0:02:58.9]} 3. Bb5 {[%clk 0:02:27.5]} 3... a6 {[%clk 0:02:57.3]}
4. Ba4 {[%clk 0:02:27.8]} 4... Nf6 {[%clk 0:02:57.2]} 5. O-O {[%clk 0:02:27.9]}
5... Be7 {[%clk 0:02:55.1]} 6. Re1 {[%clk 0:02:27.9]} 6... b5 {[%clk 0:02:54.6]}
7. Bb3 {[%clk 0:02:28.2]} 7... d6 {[%clk 0:02:54.1]} 8. c3 {[%clk 0:02:28.4]}
8... Bg4 {[%clk 0:02:53.7]} 9. h3 {[%clk 0:02:28]} 9... Bh5 {[%clk 0:02:53.5]}
10. d3 {[%clk 0:02:27.6]} 10... O-O {[%clk 0:02:51.7]} 11. Nbd2 {[%clk
0:02:27.8]} 11... Na5 {[%clk 0:02:51.3]} 12. Bc2 {[%clk 0:02:27.6]} 12... c5
{[%clk 0:02:51.4]} 13. Nf1 {[%clk 0:02:28]} 13... Ne8 {[%clk 0:02:50.7]} 14. Ng3
{[%clk 0:02:22.2]} 14... Bg6 {[%clk 0:02:50.5]} 15. d4 {[%clk 0:02:21.7]} 15...
exd4 {[%clk 0:02:49.5]} 16. cxd4 {[%clk 0:02:22.1]} 16... Nc7 {[%clk 0:02:49.8]}
17. d5 {[%clk 0:02:20.5]} 17... b4 {[%clk 0:02:48.6]} 18. b3 {[%clk 0:02:06.1]}
18... Bf6 {[%clk 0:02:43.4]} 19. Rb1 {[%clk 0:02:02.4]} 19... Nb5 {[%clk
0:02:40]} 20. Bb2 {[%clk 0:01:57.3]} 20... Bxb2 {[%clk 0:02:36.5]} 21. Rxb2
{[%clk 0:01:57]} 21... Nc3 {[%clk 0:02:29.9]} 22. Qd3 {[%clk 0:01:52.6]} 22...
Qf6 {[%clk 0:02:07.1]} 23. Rbb1 {[%clk 0:01:40.8]} 23... Nxb1 {[%clk 0:02:05.6]}
24. Rxb1 {[%clk 0:01:39.1]} 24... Rfc8 {[%clk 0:01:58.4]} 25. Nd2 {[%clk
0:01:12.9]} 25... Qc3 {[%clk 0:01:57.6]} 26. Qxc3 {[%clk 0:01:13.2]} 26... bxc3
{[%clk 0:01:57.2]} 27. Nc4 {[%clk 0:01:14.1]} 27... Nxc4 {[%clk 0:01:56.1]} 28.
bxc4 {[%clk 0:01:15]} 28... Rab8 {[%clk 0:01:55]} 29. Bb3 {[%clk 0:01:12.1]}
29... a5 {[%clk 0:01:46.5]} 30. Rc1 {[%clk 0:01:10.7]} 30... Rb4 {[%clk
0:01:41.5]} 31. Rxc3 {[%clk 0:01:10.6]} 31... a4 {[%clk 0:01:41.3]} 32. Bc2
{[%clk 0:01:10.9]} 32... Rb2 {[%clk 0:01:24.3]} 33. Bxa4 {[%clk 0:01:09.2]}
33... Rxa2 {[%clk 0:01:22]} 34. Bb5 {[%clk 0:01:07.1]} 34... Rca8 {[%clk
0:01:20.2]} 35. f4 {[%clk 0:01:02.8]} 35... f6 {[%clk 0:01:15.2]} 36. e5 {[%clk
0:00:39.4]} 36... fxe5 {[%clk 0:01:13.7]} 37. fxe5 {[%clk 0:00:40.3]} 37... dxe5
{[%clk 0:01:13]} 38. d6 {[%clk 0:00:36]} 38... Rd2 {[%clk 0:01:11.2]} 39. d7
{[%clk 0:00:33]} 39... Kf7 {[%clk 0:00:54]} 40. Re3 {[%clk 0:00:20.6]} 40... Ke6
{[%clk 0:00:49.7]} 41. Ne2 {[%clk 0:00:20.8]} 41... Raa2 {[%clk 0:00:41.9]} 42.
Nf4+ {[%clk 0:00:16.6]} 42... Kf5 {[%clk 0:00:38.3]} 43. Nd5 {[%clk 0:00:09.3]}
43... Rxg2+ {[%clk 0:00:37.5]} 44. Kh1 {[%clk 0:00:07.7]} 44... Rgd2 {[%clk
0:00:24.6]} 45. Re1 {[%clk 0:00:06.4]} 45... Ra8 {[%clk 0:00:19.4]} 46. Rf1+
{[%clk 0:00:04.7]} 46... Kg5 {[%clk 0:00:16]} 47. Re1 {[%clk 0:00:04.1]} 47...
e4 {[%clk 0:00:12.1]} 48. Rg1+ {[%clk 0:00:01.7]} 48... Kh4 {[%clk 0:00:11]} 49.
Nf4 {[%clk 0:00:01.6]} 49... Raa2 {[%clk 0:00:06]} 50. Rg4# {[%clk 0:00:01.8]}
1-0

[Event "*** SCC Grand Prix: Titled Tuesday Blitz"]
[Site "Chess.com"]
[Date "2020.06.02"]
[Round "6"]
[White "WPWPWP-2015"]
[Black "gross-aleks"]
[Result "0-1"]
[WhiteElo "2352"]
[BlackElo "2562"]
[TimeControl "180+1"]
[EndTime "11:10:02 PDT"]
[Termination "gross-aleks won by resignation"]

1. d4 {[%clk 0:02:53.7]} 1... Nf6 {[%clk 0:02:58.5]} 2. Nd2 {[%clk 0:02:52.8]}
2... d5 {[%clk 0:02:57.6]} 3. Ngf3 {[%clk 0:02:52.3]} 3... e6 {[%clk 0:02:57.4]}
4. g3 {[%clk 0:02:51.9]} 4... c5 {[%clk 0:02:56.9]} 5. c3 {[%clk 0:02:48.5]}
5... Nc6 {[%clk 0:02:56.6]} 6. Bg2 {[%clk 0:02:48.2]} 6... Bd6 {[%clk
0:02:55.1]} 7. O-O {[%clk 0:02:47.7]} 7... O-O {[%clk 0:02:55]} 8. Re1 {[%clk
0:02:44.1]} 8... Re8 {[%clk 0:02:54.6]} 9. a4 {[%clk 0:02:37.6]} 9... cxd4
{[%clk 0:02:53.5]} 10. cxd4 {[%clk 0:02:36.3]} 10... Bd7 {[%clk 0:02:47.2]} 11.
Nb3 {[%clk 0:02:35.6]} 11... Qb6 {[%clk 0:02:41.9]} 12. a5 {[%clk 0:02:32.7]}
12... Qb5 {[%clk 0:02:41.7]} 13. Bf4 {[%clk 0:02:28.3]} 13... Bb4 {[%clk
0:02:39.7]} 14. Bd2 {[%clk 0:02:16.4]} 14... Ne4 {[%clk 0:02:34.9]} 15. Bxb4
{[%clk 0:02:10.8]} 15... Qxb4 {[%clk 0:02:34.6]} 16. e3 {[%clk 0:01:49.1]} 16...
b6 {[%clk 0:02:24.5]} 17. a6 {[%clk 0:01:18.9]} 17... Na5 {[%clk 0:02:23.4]} 18.
Nxa5 {[%clk 0:01:17]} 18... bxa5 {[%clk 0:02:24.3]} 19. Ne5 {[%clk 0:01:13.7]}
19... Bb5 {[%clk 0:02:21]} 20. Nd3 {[%clk 0:01:01.9]} 20... Bxd3 {[%clk
0:02:19]} 21. Qxd3 {[%clk 0:01:01.3]} 21... Nd6 {[%clk 0:02:19.9]} 22. Qa3
{[%clk 0:00:57.2]} 22... Qxa3 {[%clk 0:02:16.7]} 23. Rxa3 {[%clk 0:00:56.4]}
23... Nc4 {[%clk 0:02:15.9]} 24. Ra2 {[%clk 0:00:52.5]} 24... Rab8 {[%clk
0:02:16.1]} 25. Bf1 {[%clk 0:00:51.6]} 25... Nd2 {[%clk 0:01:55.6]} 26. Rd1
{[%clk 0:00:47.1]} 26... Nb3 {[%clk 0:01:54.9]} 27. Ra3 {[%clk 0:00:42.8]} 27...
Rb4 {[%clk 0:01:51.3]} 28. Rd3 {[%clk 0:00:38.5]} 28... a4 {[%clk 0:01:49.2]}
29. Rc3 {[%clk 0:00:35.4]} 29... Nd2 {[%clk 0:01:31.1]} 30. Rc7 {[%clk
0:00:34.7]} 30... Ra8 {[%clk 0:01:26.8]} 31. Rb7 {[%clk 0:00:29.3]} 31... Rb8
{[%clk 0:00:49.3]} 32. Rxb8+ {[%clk 0:00:14.2]} 32... Rxb8 {[%clk 0:00:48.4]}
33. Rxa4 {[%clk 0:00:14.1]} 33... Rxb2 {[%clk 0:00:47.8]} 34. Bd3 {[%clk
0:00:09.2]} 34... g6 {[%clk 0:00:46.3]} 35. Ra5 {[%clk 0:00:08.6]} 35... Nf3+
{[%clk 0:00:45.1]} 36. Kf1 {[%clk 0:00:07.7]} 36... Nxh2+ {[%clk 0:00:44.4]} 37.
Kg2 {[%clk 0:00:07.7]} 37... Ng4 {[%clk 0:00:44.2]} 38. Rc5 {[%clk 0:00:07.2]}
38... Nxe3+ {[%clk 0:00:43.1]} 39. Kf3 {[%clk 0:00:06.4]} 39... Nd1 {[%clk
0:00:42.5]} 40. Rc7 {[%clk 0:00:06]} 40... Rxf2+ {[%clk 0:00:40.4]} 41. Kg4
{[%clk 0:00:05.5]} 41... Ne3+ {[%clk 0:00:38.8]} 42. Kh3 {[%clk 0:00:05.2]}
42... Kg7 {[%clk 0:00:34.5]} 43. Rxa7 {[%clk 0:00:04.3]} 43... h5 {[%clk
0:00:34.4]} 44. g4 {[%clk 0:00:04]} 44... hxg4+ {[%clk 0:00:31.5]} 45. Kg3
{[%clk 0:00:04.2]} 45... Rf3+ {[%clk 0:00:32]} 46. Kh2 {[%clk 0:00:04.4]} 46...
g3+ {[%clk 0:00:30.9]} 47. Kg1 {[%clk 0:00:04.6]} 47... Rf2 {[%clk 0:00:30.9]}
48. Rb7 {[%clk 0:00:02.6]} 48... Rg2+ {[%clk 0:00:30.8]} 49. Kh1 {[%clk
0:00:03]} 49... Ra2 {[%clk 0:00:30.3]} 50. Rb1 {[%clk 0:00:02.2]} 50... f5
{[%clk 0:00:28.1]} 51. Kg1 {[%clk 0:00:02.5]} 51... f4 {[%clk 0:00:27.7]} 52.
Re1 {[%clk 0:00:02.3]} 52... Kf6 {[%clk 0:00:26.4]} 53. Be2 {[%clk 0:00:02.3]}
53... g5 {[%clk 0:00:23.9]} 54. Bd3 {[%clk 0:00:01.9]} 54... g4 {[%clk
0:00:22.5]} 55. Be2 {[%clk 0:00:02.2]} 55... f3 {[%clk 0:00:21.6]} 56. Bxf3
{[%clk 0:00:01.8]} 56... gxf3 {[%clk 0:00:21.3]} 57. Rf1 {[%clk 0:00:02]} 0-1